bitfinex-derivatives/quotes_BTCF0:USTF0_20250911
["timestamp","ask_amount","ask_price","bid_price","bid_amount"]
[1757565189404,1.01208476,114230.0,114220.0,0.77774983]
[1757565189702,1.01208476,114230.0,114220.0,0.66774983]
[1757565189902,1.01208476,114230.0,114220.0,0.79774983]
[1757565190304,1.01208476,114230.0,114220.0,0.66774983]
[1757565190600,1.01208476,114230.0,114220.0,0.39449867]
[1757565191003,1.01208476,114230.0,114220.0,0.78774983]
[1757565191202,0.87545918,114230.0,114220.0,0.78774983]
[1757565191406,1.01208476,114230.0,114220.0,0.78774983]
[1757565192401,0.87545918,114230.0,114220.0,0.78774983]
[1757565192600,1.01208476,114230.0,114220.0,0.78774983]
[1757565192899,1.01208476,114230.0,114220.0,0.65112425]
[1757565194797,0.21032476,114230.0,114220.0,0.65112425]
[1757565195005,1.01192476,114230.0,114220.0,0.65112425]
[1757565195305,1.01192476,114230.0,114220.0,0.78774983]
[1757565195605,1.01192476,114230.0,114220.0,0.67793116]
[1757565195799,1.01192476,114230.0,114220.0,0.28468]
[1757565196005,1.01192476,114230.0,114220.0,0.68793116]
[1757565197006,1.01192476,114230.0,114220.0,0.67793116]
[1757565197496,1.01192476,114230.0,114220.0,0.55793116]
[1757565199999,1.01192476,114230.0,114220.0,0.66817474]
[1757565200406,0.99769574,114230.0,114220.0,0.66817474]
[1757565200910,0.99769574,114230.0,114220.0,0.53154916]
[1757565202500,0.99769574,114230.0,114220.0,0.39492358]
[1757565202994,0.99769574,114230.0,114220.0,0.14492358]
[1757565203207,1.49512132,114230.0,114220.0,0.14492358]
[1757565203506,1.35849574,114230.0,114220.0,0.14492358]
[1757565204107,1.49512132,114230.0,114220.0,0.14492358]
[1757565204407,1.35849574,114230.0,114220.0,0.14492358]
[1757565204909,1.49512132,114230.0,114220.0,0.14492358]
[1757565206402,1.49512132,114230.0,114220.0,0.03468]
[1757565207611,1.49512132,114230.0,114220.0,0.14492358]
[1757565208711,0.69352132,114230.0,114220.0,0.14492358]
[1757565208909,1.35821574,114230.0,114220.0,0.14492358]
[1757565210908,0.55689574,114230.0,114220.0,0.14492358]
[1757565211417,1.35817574,114230.0,114220.0,0.14492358]
[1757565213214,0.55589574,114230.0,114220.0,0.14492358]
[1757565213413,1.35821574,114230.0,114220.0,0.14492358]
[1757565214518,1.35921574,114230.0,114220.0,0.14492358]
[1757565214814,0.55789574,114230.0,114220.0,0.14492358]
[1757565215016,1.35817574,114230.0,114220.0,0.14492358]
[1757565215210,1.35917574,114230.0,114220.0,0.14492358]
[1757565215916,0.42127016,114230.0,114220.0,0.28154916]
[1757565216118,1.35913574,114230.0,114220.0,0.28154916]
[1757565216419,1.35813574,114230.0,114220.0,0.28154916]
[1757565216617,1.35813574,114230.0,114220.0,0.14492358]
[1757565216618,1.35913574,114230.0,114220.0,0.14492358]
[1757565216916,1.35913574,114230.0,114220.0,0.28154916]
[1757565217617,1.22251016,114230.0,114220.0,0.28154916]
[1757565217817,1.35913574,114230.0,114220.0,0.28154916]
[1757565218224,1.35913574,114230.0,114220.0,0.14492358]
[1757565218405,1.35913574,114230.0,114220.0,0.28154916]
[1757565218610,1.35913574,114230.0,114220.0,0.14492358]
[1757565219219,1.35813574,114230.0,114220.0,0.14492358]
[1757565219412,1.35913574,114230.0,114220.0,0.14492358]
[1757565220117,1.35813574,114230.0,114220.0,0.14492358]
[1757565220318,1.35913574,114230.0,114220.0,0.14492358]
[1757565222518,1.22251016,114230.0,114220.0,0.14492358]
[1757565222715,1.22251016,114230.0,114220.0,0.28154916]
[1757565223017,1.35913574,114230.0,114220.0,0.14492358]
[1757565223217,1.35913574,114230.0,114220.0,0.28154916]
[1757565223820,1.22251016,114230.0,114220.0,0.28154916]
[1757565224020,1.35913574,114230.0,114220.0,0.28154916]
[1757565224423,1.35813574,114230.0,114220.0,0.28154916]
[1757565224622,1.35913574,114230.0,114220.0,0.28154916]
[1757565224921,1.35813574,114230.0,114220.0,0.28154916]
[1757565225122,1.35913574,114230.0,114220.0,0.28154916]
[1757565225918,1.49576132,114230.0,114220.0,0.14492358]
[1757565226117,1.49576132,114230.0,114220.0,0.12385358]
[1757565227823,1.74576132,114230.0,114220.0,0.12385358]
[1757565228718,1.74476132,114230.0,114220.0,0.12385358]
[1757565228923,1.74576132,114230.0,114220.0,0.12385358]
[1757565231121,3.51120132,114230.0,114220.0,0.12385358]
[1757565231319,3.51120132,114230.0,114220.0,0.01361]
[1757565232125,3.26120132,114230.0,114220.0,0.01361]
[1757565232426,3.17016926,114230.0,114220.0,0.01361]
[1757565233325,3.42016926,114230.0,114210.0,0.12288358]
[1757565233525,0.5430191,114220.0,114210.0,0.12288358]
[1757565238636,0.56351804,114220.0,114210.0,0.12288358]
[1757565239034,0.56351804,114220.0,114210.0,0.01264]
[1757565242234,0.56351804,114220.0,114210.0,0.12288358]
[1757565242631,1.36439804,114220.0,114210.0,0.01264]
[1757565243544,1.70550759,114220.0,114210.0,0.01264]
[1757565243840,1.61439804,114220.0,114200.0,0.12288358]
[1757565244043,0.45190955,114210.0,114200.0,0.12288358]
[1757565244529,1.26135118,114210.0,114200.0,0.01264]
[1757565245041,0.46051118,114210.0,114200.0,0.01264]
[1757565245240,1.26131118,114210.0,114200.0,0.01264]
[1757565245435,1.26131118,114210.0,114200.0,0.03404]
[1757565246332,1.26131118,114210.0,114200.0,0.03504]
[1757565246833,0.46051118,114210.0,114200.0,0.03504]
[1757565247033,1.26131118,114210.0,114200.0,0.03504]
[1757565247235,0.46051118,114210.0,114200.0,0.03504]
[1757565247435,1.26131118,114210.0,114200.0,0.03504]
[1757565248243,0.46051118,114210.0,114200.0,0.03504]
[1757565248444,1.26127118,114210.0,114200.0,0.01364]
[1757565248643,1.35238073,114210.0,114200.0,0.01364]
[1757565249945,1.26127118,114210.0,114200.0,0.01364]
[1757565250746,1.35238073,114210.0,114200.0,0.01364]
[1757565251546,1.48619899,114210.0,114200.0,0.01364]
[1757565252144,1.48619899,114210.0,114200.0,0.001]
[1757565254248,1.73619899,114210.0,114190.0,0.01264]
[1757565254448,0.5430191,114200.0,114190.0,0.01264]
[1757565255651,0.5430191,114200.0,114180.0,0.01375]
[1757565255943,1.25262955,114190.0,114180.0,0.03515]
[1757565256351,3.01838955,114190.0,114180.0,0.03515]
[1757565256851,3.01838955,114190.0,114180.0,0.03715]
[1757565257450,3.01838955,114190.0,114180.0,0.03915]
[1757565258148,3.01838955,114190.0,114180.0,0.01775]
[1757565258547,3.01838955,114190.0,114180.0,0.01575]
[1757565258750,3.01838955,114190.0,114180.0,0.01875]
[1757565259054,3.01838955,114190.0,114180.0,0.04015]
[1757565260052,3.08852525,114190.0,114180.0,0.01875]
[1757565263260,3.1796348,114190.0,114180.0,0.005]
[1757565263451,3.4296348,114190.0,114180.0,0.005]
[1757565263757,3.4296348,114190.0,114170.0,0.01375]
[1757565264053,0.5430191,114180.0,114170.0,0.01375]
[1757565264259,0.56353745,114180.0,114170.0,0.01375]
[1757565265859,0.92433745,114180.0,114170.0,0.01375]
[1757565266056,1.54279835,114180.0,114170.0,0.01375]
[1757565266254,1.72501745,114180.0,114170.0,0.0356]
[1757565267667,1.72501745,114180.0,114170.0,0.01375]
[1757565270965,0.92433745,114180.0,114170.0,0.01375]
[1757565271158,1.72501745,114180.0,114170.0,0.01375]
[1757565271359,1.72501745,114180.0,114170.0,0.0356]
[1757565272566,1.54279835,114180.0,114170.0,0.0356]
[1757565272761,1.72501745,114180.0,114170.0,0.0356]
[1757565275270,1.72501745,114180.0,114170.0,0.01375]
[1757565275771,1.72601745,114180.0,114170.0,0.01375]
[1757565280566,2.067127,114180.0,114160.0,0.01375]
[1757565280766,0.5430191,114170.0,114150.0,0.0356]
[1757565280965,1.3436991,114160.0,114150.0,0.0356]
[1757565281270,1.34969261,114160.0,114150.0,0.01375]
[1757565281972,1.34969261,114160.0,114150.0,0.0356]
[1757565282973,0.54901261,114160.0,114150.0,0.01375]
[1757565283274,1.34969261,114160.0,114150.0,0.01375]
[1757565283775,1.35069261,114160.0,114150.0,0.01475]
[1757565284175,1.16847351,114160.0,114150.0,0.01475]
[1757565284477,1.35069261,114160.0,114140.0,0.03483]
[1757565284678,0.45190955,114150.0,114140.0,0.03483]
[1757565285271,0.55158668,114150.0,114140.0,0.01298]
[1757565285574,0.46047713,114150.0,114140.0,0.03483]
[1757565286271,0.46047713,114150.0,114140.0,0.01298]
[1757565287276,0.46047713,114150.0,114140.0,0.01398]
[1757565287779,0.5316532,114150.0,114140.0,0.01498]
[1757565287981,0.62276275,114150.0,114140.0,0.002]
[1757565289180,1.42344275,114150.0,114140.0,0.002]
[1757565289679,1.42344275,114150.0,114140.0,0.001]
[1757565289874,1.42444275,114150.0,114140.0,0.001]
[1757565290275,1.42444275,114150.0,114130.0,0.03483]
[1757565290472,2.3094591,114140.0,114130.0,0.03483]
[1757565291678,2.3094591,114140.0,114130.0,0.01298]
[1757565292179,2.12724,114140.0,114130.0,0.01298]
[1757565292473,2.400951,114140.0,114130.0,0.03454]
[1757565292673,3.201711,114140.0,114130.0,0.03454]
[1757565293073,2.400951,114140.0,114130.0,0.03454]
[1757565293273,3.0648555,114140.0,114130.0,0.4213955]
[1757565293473,3.201711,114140.0,114130.0,0.4223955]
[1757565294078,3.201711,114140.0,114130.0,0.4233955]
[1757565294469,3.201711,114140.0,114130.0,0.28654]
[1757565294672,2.5672,114140.0,114130.0,0.5333955]
[1757565295075,2.5672,114140.0,114130.0,0.75734]
[1757565295278,2.5672,114140.0,114130.0,0.9041955]
[1757565295279,2.7040555,114140.0,114130.0,0.9041955]
[1757565296180,1.76644,114140.0,114130.0,0.9917909]
[1757565296374,2.5529599,114140.0,114130.0,0.9917909]
[1757565297274,1.7521999,114140.0,114130.0,0.9917909]
[1757565297577,2.5529599,114140.0,114130.0,0.9917909]
[1757565297773,2.5529599,114140.0,114130.0,0.8717909]
[1757565297977,2.5529599,114140.0,114130.0,0.7349354]
[1757565298174,2.5529599,114140.0,114130.0,0.9817909]
[1757565298881,1.7521999,114140.0,114130.0,0.9817909]
[1757565299081,2.5529599,114140.0,114130.0,0.9817909]
[1757565299281,2.5529599,114140.0,114130.0,0.9717909]
[1757565299877,1.7521999,114140.0,114130.0,1.3386464]
[1757565300078,2.5529599,114140.0,114130.0,1.3386464]
[1757565300278,2.5529599,114140.0,114130.0,0.8686464]
[1757565300485,2.5529599,114140.0,114130.0,0.7217909]
[1757565300685,2.5529599,114140.0,114130.0,0.83203448]
[1757565301776,2.5529599,114140.0,114130.0,0.86203448]
[1757565302185,0.80076,114140.0,114130.0,0.86203448]
[1757565302388,0.80076,114140.0,114130.0,0.73203448]
[1757565302686,0.80076,114140.0,114130.0,0.95888998]
[1757565303180,0.80076,114140.0,114130.0,0.86888998]
[1757565303373,0.80076,114140.0,114130.0,1.08888998]
[1757565304080,0.80076,114140.0,114130.0,0.59517898]
[1757565304279,0.80076,114140.0,114130.0,0.96888998]
[1757565305287,0.80076,114140.0,114130.0,0.8586464]
[1757565305492,0.80076,114140.0,114130.0,0.96888998]
[1757565306386,0.07974365,114150.0,114130.0,0.96888998]
[1757565306586,0.1368555,114150.0,114140.0,0.308621]
[1757565306790,0.9375755,114150.0,114140.0,0.438621]
[1757565307383,0.80072,114150.0,114140.0,0.438621]
[1757565307987,0.9375755,114150.0,114140.0,0.438621]
[1757565308192,0.80172,114150.0,114140.0,0.438621]
[1757565308384,0.9385755,114150.0,114140.0,0.438621]
[1757565308585,0.80172,114150.0,114140.0,0.438621]
[1757565308892,0.80172,114150.0,114140.0,0.5262087]
[1757565309488,0.80172,114150.0,114140.0,0.63645228]
[1757565309690,0.80172,114150.0,114140.0,0.36274128]
[1757565309886,1.00848357,114150.0,114140.0,0.53886458]
[1757565310495,0.87162807,114150.0,114140.0,0.53886458]
[1757565310789,0.88056114,114150.0,114140.0,0.53886458]
[1757565310994,0.21669664,114150.0,114140.0,0.41886458]
[1757565311196,1.01737664,114150.0,114140.0,0.54886458]
[1757565311495,0.88052114,114150.0,114140.0,0.54886458]
[1757565311695,1.01737664,114150.0,114140.0,0.41886458]
[1757565311896,1.01737664,114150.0,114140.0,0.54886458]
[1757565312088,0.88052114,114150.0,114140.0,0.54886458]
[1757565312283,0.88052114,114150.0,114140.0,0.41886458]
[1757565312488,0.88052114,114150.0,114140.0,0.52886458]
[1757565312889,1.01737664,114150.0,114140.0,0.52886458]
[1757565313091,1.01737664,114150.0,114140.0,0.308621]
[1757565313287,1.01737664,114150.0,114140.0,0.428621]
[1757565313690,0.88052114,114150.0,114140.0,0.428621]
[1757565313890,1.01737664,114150.0,114140.0,0.428621]
[1757565314093,0.88052114,114150.0,114140.0,0.428621]
[1757565314500,1.01737664,114150.0,114140.0,0.428621]
[1757565314801,0.88052114,114150.0,114140.0,0.428621]
[1757565315599,0.88052114,114150.0,114140.0,0.15491]
[1757565315902,0.88052114,114150.0,114140.0,0.428621]
[1757565316099,0.07090807,114150.0,114140.0,1.1338645]
[1757565316301,0.85735084,114150.0,114140.0,1.3838645]
[1757565316502,0.80068,114150.0,114140.0,1.247009]
[1757565317404,0.80068,114150.0,114140.0,0.927009]
[1757565319009,0.87208738,114150.0,114140.0,0.927009]
[1757565320305,0.87208738,114150.0,114140.0,1.08371195]
[1757565321210,0.87204738,114150.0,114140.0,1.82056745]
[1757565321407,0.80200738,114150.0,114140.0,1.82056745]
[1757565321709,0.8006,114150.0,114140.0,1.82056745]
[1757565321914,0.8006,114150.0,114140.0,1.6638645]
[1757565324220,0.8006,114150.0,114140.0,1.6648645]
[1757565324918,0.8006,114150.0,114140.0,1.6658645]
[1757565325219,1.79649513,114170.0,114160.0,0.1242926]
[1757565325419,2.59705513,114170.0,114160.0,1.0989185]
[1757565326117,2.59705513,114170.0,114160.0,1.0113459]
[1757565326314,2.58281935,114170.0,114160.0,1.0113459]
[1757565326515,2.58381935,114170.0,114160.0,0.901231]
[1757565326819,2.72067485,114170.0,114160.0,0.901231]
[1757565327115,1.78325935,114170.0,114160.0,0.901231]
[1757565327308,2.58381935,114170.0,114160.0,0.9888036]
[1757565327512,2.58481935,114170.0,114160.0,0.9888036]
[1757565327921,2.58481935,114170.0,114160.0,0.7588036]
[1757565328215,2.58481935,114170.0,114160.0,0.8888036]
[1757565328622,2.58481935,114170.0,114160.0,0.8788036]
[1757565329613,2.58481935,114170.0,114160.0,0.98892301]
[1757565330116,2.58481935,114170.0,114160.0,0.8788036]
[1757565330322,2.58481935,114170.0,114160.0,0.98890838]
[1757565331116,2.58481935,114170.0,114160.0,0.8788036]
[1757565333718,0.03517,114160.0,114150.0,0.13319478]
[1757565333918,0.03517,114150.0,114140.0,0.02309]
[1757565334121,1.3333055,114150.0,114140.0,0.133208]
[1757565334322,1.5833055,114150.0,114140.0,0.133208]
[1757565334724,1.44645,114150.0,114140.0,0.133208]
[1757565334924,1.5833055,114150.0,114140.0,0.133208]
[1757565335326,1.44645,114150.0,114140.0,0.134208]
[1757565335529,1.5833055,114150.0,114140.0,0.134208]
[1757565336625,1.5833055,114150.0,114140.0,0.111118]
[1757565336831,1.5833055,114150.0,114140.0,0.112118]
[1757565337024,1.79017414,114150.0,114140.0,0.002]
[1757565339329,0.09121314,114150.0,114140.0,0.8976747]
[1757565339631,0.85625526,114150.0,114140.0,1.7066747]
[1757565339828,0.85625526,114150.0,114140.0,1.5688192]
[1757565341037,0.85625526,114150.0,114140.0,1.5775792]
[1757565342036,0.05577526,114150.0,114140.0,1.5775792]
[1757565342236,0.80048,114150.0,114140.0,1.7144347]
[1757565342834,0.80048,114150.0,114140.0,1.5775792]
[1757565343537,0.86912708,114150.0,114140.0,1.5775792]
[1757565343733,0.86912708,114150.0,114140.0,1.4407237]
[1757565343933,0.86912708,114150.0,114140.0,1.5775792]
[1757565346738,0.89032708,114150.0,114140.0,0.9575792]
[1757565347740,0.89032708,114150.0,114140.0,0.7675792]
[1757565348248,0.89032708,114150.0,114140.0,0.9075792]
[1757565348536,0.89032708,114150.0,114140.0,0.7675792]
[1757565348741,0.89032708,114150.0,114140.0,0.8975792]
[1757565348930,0.89032708,114150.0,114140.0,0.679991]
[1757565349129,0.89032708,114150.0,114140.0,0.789991]
[1757565349342,0.89032708,114150.0,114140.0,0.8775791]
[1757565349553,0.87608944,114150.0,114140.0,0.8775791]
[1757565350137,0.89024708,114150.0,114140.0,0.8775791]
[1757565354438,0.89024708,114150.0,114140.0,0.78622788]
[1757565354944,0.89024708,114150.0,114140.0,0.4938681]
[1757565355131,0.89024708,114150.0,114140.0,0.80622788]
[1757565355332,0.89024708,114150.0,114140.0,0.4938681]
[1757565355549,0.89024708,114150.0,114140.0,0.80622788]
[1757565357652,0.89024708,114150.0,114140.0,0.4938681]
[1757565357950,0.06864708,114150.0,114140.0,1.22622788]
[1757565358148,0.8004,114150.0,114140.0,1.18622788]
[1757565358449,0.8004,114150.0,114140.0,1.34353488]
[1757565359144,1.79585935,114170.0,114160.0,0.03686]
[1757565359348,2.58294935,114170.0,114160.0,0.25803989]
[1757565359742,1.78258935,114170.0,114160.0,0.12803989]
[1757565359941,2.58294935,114170.0,114160.0,0.12803989]
[1757565360148,2.58294935,114170.0,114160.0,0.25803989]
[1757565360344,1.78258935,114170.0,114160.0,0.25803989]
[1757565360652,2.57725422,114170.0,114160.0,0.43679248]
[1757565360949,0.82489,114170.0,114160.0,0.43679248]
[1757565361551,0.82689,114170.0,114160.0,0.43679248]
[1757565361845,0.02653,114170.0,114160.0,0.43679248]
[1757565362050,0.70197425,114170.0,114160.0,0.79759248]
[1757565363746,0.70197425,114170.0,114160.0,0.66759248]
[1757565364045,0.01229425,114170.0,114160.0,0.78759248]
[1757565364249,0.81261425,114170.0,114160.0,0.78759248]
[1757565364450,0.80961425,114170.0,114160.0,0.79759248]
[1757565364644,0.80861425,114170.0,114160.0,0.79759248]
[1757565364951,0.80861425,114170.0,114160.0,0.80634248]
[1757565365941,0.80761425,114170.0,114160.0,0.67634248]
[1757565366146,0.80761425,114170.0,114160.0,0.80634248]
[1757565367851,0.80761425,114170.0,114160.0,0.79634248]
[1757565368853,0.80761425,114170.0,114160.0,0.67634248]
[1757565369053,0.80761425,114170.0,114160.0,0.80634248]
[1757565372059,0.79337898,114170.0,114160.0,0.80634248]
[1757565372251,0.81490898,114170.0,114160.0,0.67634248]
[1757565372451,0.81490898,114170.0,114160.0,0.80634248]
[1757565378956,0.03028682,114180.0,114170.0,0.124425]
[1757565379162,0.80891682,114180.0,114170.0,0.78758478]
[1757565379358,0.80016,114180.0,114170.0,0.78758478]
[1757565379569,0.82169,114180.0,114170.0,0.78758478]
[1757565380061,0.82169,114180.0,114170.0,0.68640489]
[1757565380260,0.82269,114180.0,114170.0,0.68640489]
[1757565381259,0.82369,114180.0,114170.0,0.68640489]
[1757565386354,0.80945597,114180.0,114170.0,0.68640489]
[1757565386961,0.80945597,114180.0,114170.0,0.69640489]
[1757565388262,0.002,114180.0,114170.0,1.33364178]
[1757565388450,0.80204,114180.0,114170.0,1.58364178]
[1757565391264,0.80104,114180.0,114170.0,1.58364178]
[1757565391656,0.80104,114180.0,114170.0,1.42633478]
[1757565391864,0.80004,114180.0,114170.0,1.42633478]
[1757565393166,0.80004,114180.0,114170.0,1.58364178]
[1757565393365,0.0909112,114190.0,114180.0,0.1233474]
[1757565393558,0.8909112,114190.0,114180.0,0.66650718]
[1757565393758,0.9130512,114190.0,114180.0,0.77650718]
[1757565394467,0.1130512,114190.0,114180.0,0.77650718]
[1757565394662,0.9130112,114190.0,114180.0,1.23650718]
[1757565395162,0.9140112,114190.0,114180.0,1.23650718]
[1757565395468,0.9150112,114190.0,114180.0,1.23650718]
[1757565395861,0.8928712,114190.0,114180.0,1.23650718]
[1757565396372,0.8928712,114190.0,114180.0,1.34663705]
[1757565397166,0.8928712,114190.0,114180.0,1.23650718]
[1757565397766,0.8928712,114190.0,114180.0,1.34663705]
[1757565398367,0.8928712,114190.0,114180.0,1.23650718]
[1757565398769,0.8928712,114190.0,114180.0,0.96659]
[1757565398966,0.8928712,114190.0,114180.0,1.14894978]
[1757565399670,0.8928712,114190.0,114180.0,1.30625678]
[1757565399965,0.9150112,114190.0,114180.0,0.673897]
[1757565400164,0.9150112,114190.0,114180.0,0.85625678]
[1757565400470,0.9150112,114190.0,114180.0,0.69894978]
[1757565400670,0.9150112,114190.0,114180.0,0.70769978]
[1757565401169,0.90077863,114190.0,114180.0,0.70769978]
[1757565403162,0.90077863,114190.0,114180.0,0.79525738]
[1757565404975,0.90077863,114190.0,114180.0,0.6128976]
[1757565405166,0.90077863,114190.0,114180.0,0.43445738]
[1757565405470,0.90077863,114190.0,114180.0,0.79525738]
[1757565406175,0.88013473,114190.0,114180.0,0.79525738]
[1757565406773,0.88013473,114190.0,114180.0,0.95256438]
[1757565409280,0.88013473,114190.0,114180.0,0.67525738]
[1757565409478,0.88013473,114190.0,114180.0,1.19525738]
[1757565412492,0.88013473,114190.0,114180.0,1.35256438]
[1757565413295,0.88013473,114190.0,114180.0,1.1702046]
[1757565413590,0.88013473,114190.0,114180.0,1.35256438]
[1757565413991,0.88013473,114190.0,114180.0,1.30546012]
[1757565416395,0.88013473,114190.0,114180.0,1.28623092]
[1757565416595,0.88013473,114190.0,114180.0,1.44353792]
[1757565418990,0.88013473,114190.0,114180.0,1.28623092]
[1757565421297,0.88013473,114190.0,114180.0,1.44353792]
[1757565421894,0.08017473,114190.0,114180.0,1.44353792]
[1757565422197,0.85771473,114190.0,114180.0,1.58020458]
[1757565422397,0.85771473,114190.0,114180.0,1.44353792]
[1757565424500,0.85771473,114190.0,114180.0,1.28623092]
[1757565425287,0.85771473,114190.0,114180.0,1.44353792]
[1757565426098,0.85771473,114190.0,114180.0,1.28623092]
[1757565426697,0.84348249,114190.0,114180.0,1.28623092]
[1757565426895,0.84348249,114190.0,114180.0,1.44353792]
[1757565432899,0.04380249,114190.0,114180.0,1.44353792]
[1757565433204,0.84340249,114190.0,114180.0,1.44353792]
[1757565433405,0.84340249,114190.0,114180.0,1.28623092]
[1757565435702,0.84340249,114190.0,114180.0,1.17052055]
[1757565435907,0.84340249,114190.0,114180.0,1.44385387]
[1757565436709,0.8291702,114190.0,114180.0,1.44385387]
[1757565441910,0.8291702,114190.0,114180.0,1.17052055]
[1757565442110,0.8291702,114190.0,114180.0,1.44385387]
[1757565442511,0.8509302,114190.0,114180.0,0.71052055]
[1757565442704,0.8509302,114190.0,114180.0,0.98385387]
[1757565443409,0.8509302,114190.0,114180.0,0.89629627]
[1757565443611,1.23759686,114190.0,114180.0,0.69962961]
[1757565443805,1.23759686,114190.0,114180.0,0.83629627]
[1757565444005,1.23759686,114190.0,114180.0,0.33882961]
[1757565444415,1.23759686,114190.0,114180.0,0.47549627]
[1757565445108,1.23747686,114190.0,114180.0,0.83629627]
[1757565445312,1.1008102,114190.0,114180.0,0.47549627]
[1757565445711,1.1008102,114190.0,114180.0,0.20216295]
[1757565445912,1.23747686,114190.0,114180.0,0.47549627]
[1757565446313,1.23747686,114190.0,114180.0,0.20216295]
[1757565446513,1.23747686,114190.0,114180.0,0.47549627]
[1757565446808,1.26430762,114190.0,114180.0,0.18873295]
[1757565447010,1.62510762,114190.0,114180.0,0.16637295]
[1757565447211,1.76177428,114190.0,114180.0,0.11902859]
[1757565447408,1.62510762,114190.0,114180.0,0.11902859]
[1757565448011,1.76177428,114190.0,114180.0,0.11902859]
[1757565448814,1.76177428,114190.0,114180.0,0.00875]
[1757565452215,3.52769428,114190.0,114180.0,0.00875]
[1757565452608,3.39102762,114190.0,114180.0,0.00875]
[1757565453307,3.25432096,114190.0,114180.0,0.16783666]
[1757565453507,3.39098762,114190.0,114180.0,0.16783666]
[1757565453809,3.25432096,114190.0,114180.0,0.16783666]
[1757565454019,3.39098762,114190.0,114180.0,0.00875]
[1757565454514,3.25432096,114190.0,114180.0,0.00875]
[1757565454714,3.39098762,114190.0,114180.0,0.00875]
[1757565457014,3.39098762,114190.0,114180.0,0.16783666]
[1757565457015,2.23074762,114190.0,114180.0,0.16783666]
[1757565457217,2.78286762,114190.0,114180.0,0.18088666]
[1757565457508,3.14366762,114190.0,114180.0,0.18088666]
[1757565457913,2.20488096,114190.0,114180.0,0.31755332]
[1757565458209,2.77600762,114190.0,114180.0,0.18088666]
[1757565458402,3.13680762,114190.0,114180.0,0.18088666]
[1757565458808,2.77600762,114190.0,114180.0,0.18088666]
[1757565459003,3.13680762,114190.0,114180.0,0.18088666]
[1757565459209,3.13672762,114190.0,114180.0,0.18088666]
[1757565460916,3.13652762,114190.0,114180.0,0.18088666]
[1757565461109,2.77572762,114190.0,114180.0,0.18088666]
[1757565461421,3.13652762,114190.0,114180.0,0.18088666]
[1757565461615,2.77572762,114190.0,114180.0,0.18088666]
[1757565461814,3.13652762,114190.0,114180.0,0.18088666]
[1757565462118,2.77572762,114190.0,114180.0,0.18088666]
[1757565462316,3.13652762,114190.0,114180.0,0.18088666]
[1757565463818,2.77572762,114190.0,114180.0,0.18088666]
[1757565464320,1.83734096,114190.0,114180.0,0.18088666]
[1757565464619,2.77548762,114190.0,114180.0,0.18088666]
[1757565464812,3.13628762,114190.0,114180.0,0.18088666]
[1757565465014,2.77548762,114190.0,114180.0,0.18088666]
[1757565465215,1.97400762,114190.0,114180.0,0.18088666]
[1757565465410,2.63862096,114190.0,114180.0,0.18088666]
[1757565465610,2.77528762,114190.0,114180.0,0.18088666]
[1757565466710,1.00936762,114190.0,114180.0,0.18088666]
[1757565466911,0.87270096,114190.0,114180.0,0.18088666]
[1757565467110,1.00936762,114190.0,114180.0,0.18088666]
[1757565467817,0.20808762,114190.0,114180.0,0.18088666]
[1757565468018,1.00908762,114190.0,114180.0,0.18088666]
[1757565468411,1.00908762,114190.0,114180.0,0.04422]
[1757565468613,1.00908762,114190.0,114180.0,0.26844436]
[1757565469716,0.07142096,114190.0,114180.0,0.40511102]
[1757565469921,0.87274096,114190.0,114180.0,1.24511102]
[1757565470113,0.87274096,114190.0,114180.0,0.96538961]
[1757565471417,0.87274096,114190.0,114180.0,1.32618961]
[1757565472124,0.87274096,114190.0,114180.0,0.85285629]
[1757565472325,0.87274096,114190.0,114180.0,1.25618961]
[1757565477725,0.87274096,114190.0,114180.0,1.14591102]
[1757565478422,0.87274096,114190.0,114180.0,1.05481224]
[1757565482335,0.87274096,114190.0,114180.0,0.92481224]
[1757565482521,0.87274096,114190.0,114180.0,1.05481224]
[1757565483434,0.87274096,114190.0,114180.0,0.92481224]
[1757565483730,0.87274096,114190.0,114180.0,1.05481224]
[1757565484432,0.87174096,114190.0,114180.0,1.37481224]
[1757565492244,0.07142096,114190.0,114180.0,1.37481224]
[1757565492435,0.87114096,114190.0,114180.0,1.37481224]
[1757565493138,0.07142096,114190.0,114180.0,1.37481224]
[1757565493343,0.84934096,114190.0,114180.0,1.37481224]
[1757565494841,0.0295702,114190.0,114180.0,1.12481224]
[1757565495145,0.8292102,114190.0,114180.0,1.12481224]
[1757565496049,0.8292102,114190.0,114180.0,1.23505642]
[1757565497341,0.8292102,114190.0,114180.0,1.12481224]
[1757565498143,0.0295702,114190.0,114180.0,1.12481224]
[1757565498350,0.8292102,114190.0,114180.0,1.23510454]
[1757565499744,0.0295702,114190.0,114180.0,1.23510454]
[1757565500050,0.81497806,114190.0,114180.0,1.53243519]
[1757565500347,0.8017716,114190.0,114180.0,1.53243519]
[1757565500850,0.8017716,114190.0,114180.0,1.37481224]
[1757565504254,0.8017716,114190.0,114180.0,1.53226668]
[1757565504453,0.8710249,114190.0,114180.0,1.53226668]
[1757565505754,0.8710249,114190.0,114180.0,1.35003214]
[1757565505955,0.8710249,114190.0,114180.0,1.53226668]
[1757565507448,0.8709449,114190.0,114180.0,1.37481224]
[1757565508160,0.8709449,114190.0,114180.0,1.53226668]
[1757565510059,0.85671323,114190.0,114180.0,1.53226668]
[1757565513355,0.05715323,114190.0,114180.0,1.53226668]
[1757565513556,0.79952,114190.0,114180.0,1.53226668]
[1757565513755,0.86822707,114190.0,114180.0,1.53226668]
[1757565515056,0.86822707,114190.0,114180.0,1.28226668]
[1757565516164,0.86822707,114190.0,114180.0,1.12481224]
[1757565516664,0.86822707,114190.0,114180.0,1.21592951]
[1757565516863,0.86822707,114190.0,114180.0,1.12481224]
[1757565520070,0.85399575,114190.0,114180.0,1.12481224]
[1757565520459,0.85399575,114190.0,114180.0,0.9425777]
[1757565520667,0.85399575,114190.0,114180.0,1.12481224]
[1757565522569,0.85399575,114190.0,114180.0,0.9425777]
[1757565522766,0.85399575,114190.0,114180.0,1.12481224]
[1757565525964,0.85399575,114190.0,114180.0,0.9425777]
[1757565526161,0.85399575,114190.0,114180.0,1.12481224]
[1757565526971,0.05447575,114190.0,114180.0,1.12481224]
[1757565527272,0.47092,114190.0,114180.0,1.12481224]
[1757565527971,0.54191016,114190.0,114180.0,1.12481224]
[1757565529473,0.54191016,114190.0,114180.0,1.32740712]
[1757565530076,0.52767884,114190.0,114180.0,1.32740712]
[1757565535478,0.07099016,114190.0,114180.0,1.32740712]
[1757565535674,0.02289,114200.0,114190.0,0.1217199]
[1757565535878,0.02289,114200.0,114190.0,0.86122942]
[1757565536872,0.09564984,114200.0,114190.0,0.86122942]
[1757565537277,0.09564984,114200.0,114190.0,0.86997942]
[1757565537777,0.09764984,114200.0,114190.0,0.86997942]
[1757565538383,0.10627478,114200.0,114190.0,0.86997942]
[1757565540378,0.10627478,114200.0,114190.0,0.91551247]